Cogmind - Beta 10.1 @@@ ROGUE MODE // 2020.09.28 @ 09:37:11 Player: sentrybuster Result: Destroyed by G-47 Trooper with Particle Gun Performance ------------- Evolutions (2) 1000 Regions Visited (3) 600 Robots Destroyed (22) 110 Value Destroyed (635) 635 Prototype IDs (0) 0 Alien Tech Used (0) 0 Bonus (200) 200 TOTAL SCORE: 2545 Bonus ------- Pacifist 200 Cogmind --------- Core Integrity 0/550 Matter 294/300 Energy 99/100 System Corruption 2% Temperature Cool (27) Movement Core (50) Location -8/Materials Parts ------- > --- POWER (1) -------- (None) > --- PROPULSION (3) --- (None) > --- UTILITY (4) ------ (None) > --- WEAPON (3) ------- (None) > --- INVENTORY (4) ---- Large Battery (300) Hacking Suite Beam Cannon High-powered Shotgun Peak State ------------ > --- POWER ------------ Light Nuclear Core > --- PROPULSION ------- Aluminum Leg Wheel > --- UTILITY ---------- Medium Storage Unit Core Shielding > --- WEAPON ----------- Autogun High-powered Shotgun Axe > --- INVENTORY -------- Wheel Large Battery Beam Cannon High-powered Shotgun High-powered Shotgun Katana [Rating: 16] Favorites ----------- Power Light Ion Engine Engine Light Ion Engine Power Core Light Nuclear Core Propulsion Aluminum Leg Leg Aluminum Leg Wheel Wheel Utility Core Shielding Storage Medium Storage Unit Protection Core Shielding Weapon Autogun Energy Gun Small Laser Ballistic Gun Autogun Ballistic Cannon Light Cannon Launcher Missile Launcher Slashing Weapon Katana Build | -11 -10 -9 -8 ------- Run | Scr Mat Mat Mat Slots Evolved 4 | . . 2 2 Power . | . . . . Propulsion 1 | . . . 1 Utility 2 | . . 1 1 Weapon 1 | . . 1 . Parts Attached 23 | 6 . 13 4 Power 2 | 1 . 1 . Engine 1 | 1 . . . Core 1 | . . 1 . Reactor . | . . . . Propulsion 5 | 2 . 2 1 Treads . | . . . . Leg 3 | 2 . 1 . Wheel 2 | . . 1 1 Hover . | . . . . Flight . | . . . . Utility 3 | 1 . 2 . Device . | . . . . Storage 2 | 1 . 1 . Processor . | . . . . Hackware . | . . . . Protection 1 | . . 1 . Artifact . | . . . . Weapon 13 | 2 . 8 3 Energy Gun 3 | 2 . 1 . Energy Cannon . | . . . . Ballistic Gun 6 | . . 5 1 Ballistic Cannon 1 | . . 1 . Launcher 1 | . . . 1 Special Weapon . | . . . . Impact Weapon . | . . . . Slashing Weapon 2 | . . 1 1 Piercing Weapon . | . . . . Special Melee Weapon . | . . . . Unidentified Prototypes . | . . . . Parts Lost 15 | . . 5 10 Power 2 | . . 1 1 Propulsion 5 | . . 2 3 Utility 1 | . . . 1 Weapon 7 | . . 2 5 Highest Loss Streak 8 | . . 3 8 Average Slot Usage (%) 75 | . 85 80 51 Engine 8 | . 14 9 . Core 2 | . . 1 6 Leg 17 | . 28 17 4 Wheel 2 | . . 1 8 Storage 10 | . 14 11 6 Protection 6 | . . 8 6 Energy Gun 8 | . 28 4 . Ballistic Gun 10 | . . 12 13 Ballistic Cannon 2 | . . 4 . Slashing Weapon 6 | . . 8 6 Naked Turns 10 | . . . 10 Heaviest Build 23 | 10 10 22 23 Greatest Support 20 | 20 20 20 20 Greatest Overweight (x) 2 | . . 2 2 Average Overweight (x) . | . . . . Largest Inventory Capacity 10 | 6 6 10 8 Average Capacity 6 | 5 6 7 6 Most Carried 8 | 4 5 8 6 Average Carried 5 | 2 4 5 4 Final Capacity 8 | 6 6 8 4 Final Carried 5 | 4 5 5 4 Class Distribution -------------------- 59% | Mutant 40% | Scavenger-Mutant Dominant Class ---------------- Mutant | -10/Materials Scavenger-Mutant | -9/Materials Mutant | -8/Materials Resources | -11 -10 -9 -8 ----------- Run | Scr Mat Mat Mat Matter Collected 570 | 187 . 336 47 Remotely . | . . . . Salvage Created 742 | . . 580 162 Parts 41 | . . 33 8 Haulers Intercepted 2 | . . 2 . Recyclers Shooed 1 | . . 1 . Parts Field Recycled . | . . . . Retrieved Matter . | . . . . Parts Self-Destructed . | . . . . Prevented . | . . . . Kills | -11 -10 -9 -8 ------- Run | Scr Mat Mat Mat Combat Hostiles Destroyed 17 | . . 10 7 Melee 4 | . . 4 . Guns 6 | . . 4 2 Cannons 2 | . . 2 . AOE 5 | . . . 5 Classes Destroyed 8 | . . 7 1 Worker 2 | . . 2 . Hauler 2 | . . 2 . Mechanic 1 | . . 1 . Swarmer 5 | . . 3 2 Grunt 5 | . . 2 3 Duelist 1 | . . 1 . Sentry 5 | . . 4 1 Hunter 1 | . . . 1 Best Kill Streak 6 | . . 4 6 Combat Bots Only 6 | . . 3 6 Max Kills in Single Turn 5 | . . 1 5 Gunslinging . | . . . . Exploded 5 | . . . 5 Melee 1 | . . 1 . Uniques/NPCs Destroyed . | . . . . Combat | -11 -10 -9 -8 -------- Run | Scr Mat Mat Mat Damage Taken 1919 | . . 795 1124 Core 682 | . . 121 561 Absorbed by Shields . | . . . . Core Remaining (%) 89 | 100 100 69 . Volleys Fired 42 | . 2 36 4 Largest 2 | . 2 2 2 Hottest 80 | . 80 80 48 Shots Fired 77 | . 4 67 6 Gun 60 | . 4 51 5 Cannon 16 | . . 16 . Launcher 1 | . . . 1 Special . | . . . . Kinetic 52 | . . 47 5 Thermal 12 | . 2 10 . Explosive 1 | . . . 1 Electromagnetic 12 | . 2 10 . Robot Hit Streak 8 | . 2 8 5 Robot Miss Streak 3 | . 1 3 2 Penetration Max . | . . . . Secondary Targets . | . . . . Shots Hit Robots 67 | . 3 59 5 Core Hits 31 | . . 20 11 Critical Hits . | . . . . Critical Kills . | . . . . Critical Parts Destroyed . | . . . . Melee Attacks 26 | . . 20 6 Impact . | . . . . Slashing 26 | . . 20 6 Piercing . | . . . . Sneak Attacks 6 | . . 6 . Combat Hostiles . | . . . . Follow-up Attacks . | . . . . Damage Inflicted 2433 | . 32 1499 902 Guns 477 | . 32 390 55 Cannons 171 | . . 171 . Explosions 804 | . . . 804 Melee 971 | . . 936 35 Ramming 10 | . . 2 8 Kinetic 482 | . . 427 55 Thermal 76 | . 10 66 . Explosive 804 | . . . 804 Electromagnetic 90 | . 22 68 . Impact . | . . . . Slashing 971 | . . 936 35 Piercing . | . . . . Highest Corruption 2 | . . . 2 Average Corruption 2 | . . . 2 Corruption Purged . | . . . . Overload Shots . | . . . . Overflow Damage 334 | . . 205 129 Projectiles . | . . . . Explosions 122 | . . . 122 Melee 212 | . . 205 7 Knockbacks 2 | . . 2 . Impact . | . . . . Kinetic 2 | . . 2 . Secondary . | . . . . Self-Inflicted Damage 350 | . . . 350 Shots 4 | . . . 4 Rammed 2 | . . 1 1 Targets Rammed 3 | . . 2 1 Kicked 1 | . . 1 . Crushed . | . . . . Highest Temperature 36 | . 36 36 9 Average Temperature 10 | . 20 9 9 Received Heat Transfer 402 | . . 114 288 Siege Activations . | . . . . Robots Corrupted . | . . . . Combat Hostiles . | . . . . Parts Fried 1 | . . 1 . Impact Corruptions . | . . . . Robots Melted . | . . . . Combat Hostiles . | . . . . Parts Melted . | . . . . Heat Transferred 175 | . 25 150 . Parts Sabotaged . | . . . . Parts Stolen . | . . . . Parts Stripped . | . . . . Power Chain Reactions . | . . . . Missiles Intercepted . | . . . . Alert | -11 -10 -9 -8 ------- Run | Scr Mat Mat Mat Peak Influence 321 | . 28 170 321 Initial 71 | . . 11 71 Average 63 | . 15 64 135 Maximum Alert Level 1 | . . . 1 Low Security (%) 96 | 100 100 100 76 Level 1 3 | . . . 23 Level 2 . | . . . . Level 3 . | . . . . Level 4 . | . . . . Level 5 . | . . . . High Security . | . . . . Max Security . | . . . . Squads Dispatched 3 | . . . 3 Investigation 1 | . . . 1 Extermination . | . . . . Reinforcement 2 | . . . 2 Assault . | . . . . Garrison . | . . . . Intercept . | . . . . Construction Impeded 1 | . . . 1 Haulers Reinforced . | . . . . Stealth | -11 -10 -9 -8 --------- Run | Scr Mat Mat Mat Distress Signals 4 | . . 3 1 Communications Jammed . | . . . . Distress Signals . | . . . . Times Spotted 45 | . 1 22 22 Peak Tracking Total 9 | . 1 6 9 Tactical Retreats 4 | . . 3 1 Traps | -11 -10 -9 -8 ------- Run | Scr Mat Mat Mat Traps Triggered . | . . . . Indirectly . | . . . . Trap Hack Attempts . | . . . . Triggered . | . . . . Disarmed . | . . . . Reprogrammed . | . . . . Reused . | . . . . Traps Extracted . | . . . . Installed . | . . . . Triggered . | . . . . Machines | -11 -10 -9 -8 ---------- Run | Scr Mat Mat Mat Machines Disabled 3 | . . . 3 Max in Single Turn 2 | . . . 2 Machines Sabotaged . | . . . . Garrisons Compromised . | . . . . Overloaded Fab Kills . | . . . . Fab Network Shutdowns . | . . . . Hacking | -11 -10 -9 -8 --------- Run | Scr Mat Mat Mat Machines Accessed 8 | . 4 2 2 Terminals 7 | . 3 2 2 Fabricators . | . . . . Repair Stations . | . . . . Recycling Units 1 | . 1 . . Scanalyzers . | . . . . Garrison Access . | . . . . Total Hacks 20 | . 9 3 8 Successful 12 | . 8 2 2 Failed 8 | . 1 1 6 Catastrophic 2 | . . . 2 Database Lockouts . | . . . . Manual 13 | . 5 2 6 Terminals 17 | . 6 3 8 Fabricators . | . . . . Repair Stations . | . . . . Recycling Units 3 | . 3 . . Scanalyzers . | . . . . Garrison Access . | . . . . Terminal Hacks 3 | . 1 1 1 Alert Level 1 | . . 1 . Zone Layout 2 | . 1 . 1 Fabricator Hacks . | . . . . Repair Station Hacks . | . . . . Recycling Unit Hacks 3 | . 3 . . Process 1 | . 1 . . Report Inventory 1 | . 1 . . Retrieve Matter 1 | . 1 . . Scanalyzer . | . . . . Garrison Access Hacks . | . . . . Unauthorized Hacks 6 | . 4 1 1 Terminals 6 | . 4 1 1 Track 1 | . 1 . . Botnet 5 | . 3 1 1 Fabricators . | . . . . Repair Stations . | . . . . Recycling Units . | . . . . Scanalyzers . | . . . . Garrison Access . | . . . . Data Cores Recovered . | . . . . Used . | . . . . Hacking Detections 4 | . . 2 2 Full Trace Events 1 | . . . 1 Feedback Events . | . . . . Feedback Blocked . | . . . . Robot Schematics Acquired . | . . . . Robots Built . | . . . . Matter . | . . . . Time . | . . . . Total Robot Build Rating . | . . . . Part Schematics Acquired . | . . . . Parts Built . | . . . . Matter . | . . . . Time . | . . . . Total Part Build Rating . | . . . . Parts Repaired . | . . . . Time . | . . . . Parts Recycled . | . . . . Recycled Matter 3 | . 3 . . Retrieved Matter 3 | . 3 . . Retrieved Components . | . . . . Parts Scanalyzed . | . . . . Part Schematics Acquired . | . . . . Parts Damaged . | . . . . Bothacking | -11 -10 -9 -8 ------------ Run | Scr Mat Mat Mat Used RIF Installer . | . . . . Robots Hacked . | . . . . Non-combat . | . . . . Combat . | . . . . Robot Hacks Applied . | . . . . Relay Couplers Released . | . . . . Robots Rewired . | . . . . Allies Hacked . | . . . . Hacks Repelled . | . . . . Allies | -11 -10 -9 -8 -------- Run | Scr Mat Mat Mat Total Allies . | . . . . Largest Group . | . . . . Highest-Rated Group . | . . . . Highest-Rated Ally . | . . . . Total Orders . | . . . . Ally Attacks . | . . . . Total Damage . | . . . . Kills . | . . . . Allies Corrupted . | . . . . Allies Melted . | . . . . Intel | -11 -10 -9 -8 ------- Run | Scr Mat Mat Mat Robot Analysis Total . | . . . . Derelict Logs Recovered . | . . . . Drone Launches . | . . . . Drone Recoveries . | . . . . Exploration | -11 -10 -9 -8 ------------- Run | Scr Mat Mat Mat Turns Passed 1289 | 74 226 771 218 Spaces Moved 774 | 53 137 410 174 Core 81 | 3 . . 78 Treads . | . . . . Legs 653 | 50 137 410 56 Wheels 40 | . . . 40 Hover . | . . . . Flight . | . . . . Fastest Speed 50 | 50 120 120 50 Average Speed 121 | 116 120 131 100 Slowest Speed 180 | 120 120 180 180 Overloaded Moves . | . . . . Propulsion Burnouts . | . . . . Robots Hopped . | . . . . Cave-ins Triggered . | . . . . Exploration Rate (%) 18 | 4 26 25 19 Regions Visited 3 Branch Regions . Pre-discovered Areas . | . . . . Known Exits Taken . | . . . . Unknown Exits Taken 3 | 1 1 1 . Scrap Searched . | . . . . Spaces Dug . | . . . . Terrain Destroyed 74 | . . . 74 Melee . | . . . . Projectile . | . . . . AOE 74 | . . . 74 Terrain Rammed 1 | . . . 1 Walls Destroyed . | . . . . Machines Disabled . | . . . . Actions | -11 -10 -9 -8 --------- Run | Scr Mat Mat Mat Total 1005 | 62 194 548 201 Wait 115 | . 55 54 6 Move 771 | 52 136 409 174 Hop . | . . . . Pick Up 12 | 4 1 5 2 Fast Attach 17 | 6 . 9 2 Attach 6 | . . 4 2 Detach 5 | . . 4 1 Swap . | . . . . Drop 7 | . . 5 2 Fire 42 | . 2 36 4 Melee 26 | . . 20 6 Ram 2 | . . . 2 Kick 2 | . . 2 . Crush . | . . . . Escape Stasis . | . . . . Rewire . | . . . . Trap . | . . . . Miscellaneous . | . . . . Route ------- -11/Scrapyard -10/Materials (discovered 2 exits: *Mat / [*Min]) -9/Materials -8/Materials History --------- Turn | Location | Event 6 | -11/Scrapyard | Discovered new exit (range 15) 75 | -11/Scrapyard | Entered Materials 90 | -10/Materials | Discovered new exit (range 15) 293 | -10/Materials | Discovered new exit (range 6) 301 | -10/Materials | Entered another Materials area 301 | -9/Materials | Evolved 2 slots: Utility x1, Weapon x1 304 | -9/Materials | Build established: Mutant 475 | -9/Materials | Lost 3 parts (1n2w) 901 | -9/Materials | Discovered new exit (range 13) 916 | -9/Materials | Build established: Scavenger-Mutant 1072 | -9/Materials | Entered another Materials area 1072 | -8/Materials | Evolved 2 slots: Propulsion x1, Utility x1 1240 | -8/Materials | Core integrity fell below 50% 1270 | -8/Materials | Lost 8 parts (1p2n1u4w) 1283 | -8/Materials | Core integrity fell below 20% 1290 | -8/Materials | Destroyed by G-47 Trooper with Particle Gun Last Messages --------------- 01243_ U-05 Engineer lays Concrete. 01244_ K-01 Serf collects debris. 01245_ The unstable cave ceiling collapses. 01245_ U-05 Engineer lays Concrete. 01245_ U-05 Engineer builds a Wall. 01246_ The unstable cave ceiling collapses. 01246_ U-05 Engineer builds a Wall. 01246_ U-05 Engineer lays Concrete. 01248_ U-05 Engineer builds a Wall. 01249_ U-05 Engineer lays Concrete. 01250_ K-01 Serf collects debris. 01250_ U-05 Engineer lays Concrete. 01252_ The unstable cave ceiling collapses. 01252_ Med. Storage Unit crushed. 01252_ U-05 Engineer lays Concrete. 01253_ U-05 Engineer builds a Wall. 01266_ Acquired Hacking Suite. 01284_ Hpw. Shotgun destroyed. 01285_ Slammed into G-47 Trooper. 01287_ K-01 Serf collects debris. Map ----- +----------------------------------------------------+ | ?????????????????????????# % #?????? | | ?????????????????????????# * #?????? | | ?????????????????????????# ####### #?????? | | ?????????????????????????### ##### #?????? | | ?????????????????????????# # ##? #? | | ????????????????????????## # ### #? | | ????????????????????????# #? | | ????????????????????????# % #? | | ????????????????????????# ### +? | | ????????????????????????# ! * # #?# #? | | ????????????????????????# # /#= #?# #? | | ????????????????????????### #% # # ### #? | | ?????????????????????????# # # # #? | | ???????????????????????????## # % = # #? | | ????????????????????????????##### ## %[ # #? | | ??????????????????????????????? # """ # #? | | ?????????????????????????????? # """"" # #? | | ????????????????????????????? # """"" # #? | | ????????????????????????????#### # """"" + +? | | ???????????????????????????????# # """ # #? | | ???????????????????????????????# #######/### ## | | ???????????##################### #????# | | ??????????? g #????# | | ?????????? #????# #####/# | | ?????????? #????# # | | ?????????? @ ###### # """ | | ?????????? g ggg # """ | | ?????????? g g # """ | | ??????????? ##############+####o####+####+## | | ?????????????????????????????# # """ | | ?????????????????????????????# """"" # """ | | ?????????????????????????????# ""T"" ! # ??? | | ?????????????????????????????# ! # ? ??? | | ?????????????????????????????# #?????? | | ?????????????????????????????# #?????? | | ?????????????????????????????###############?????? | | | | | | | | | | | | | | | | | | | | | | | | | | | | | +----------------------------------------------------+ Best States ------------- Heat Dissipation 31 Energy Generation 14 Energy Capacity 160 Matter Stores 300 Matter Capacity 300 Sight Range 16 Terrain Scan Density 10 Core Shielding 20 Evasion (%) 50 Item Schematics ----------------- None Robot Schematics ------------------ None Fabricated ------------ Nothing Alien Tech Used ----------------- None Achievements -------------- None Challenges ------------ None Game ------ Seed ArcAssembledCloak Manual? 0 Play Time 00:17:56 Cumulative 59.5 hours Start 2020.09.28 @ 08:54:39 End 2020.09.28 @ 09:37:11 Sessions 1 Manual Loads 0 Difficulty Rogue Special Mode None Game No. 112 Rogue 112 Adventurer 0 Explorer 0 Win Type - Total 0 Types 0/0/0/0/0/0/0/0/0 Lore% 46 Gallery% 55 Achievement% 39 Wizard Run 0 Options --------- ASCII 1 Keyboard 1 Movement Numpad Keybinds 0 Fullscreen 1 Font 18/Terminus Map View 76x50 Tactical HUD 1 Map Filters NONE Filters NONE Steam 1 RUN: 02519aa5-c491-4e2a-99aa-fe8097956e4b